bitfinex/quotes_BTCUSD_20251027
["timestamp","ask_amount","ask_price","bid_price","bid_amount"]
[1761590002937,1.73541506,115450.0,115440.0,1.0]
[1761590003161,1.86099306,115450.0,115440.0,1.0]
[1761590003872,1.95081207,115450.0,115440.0,1.0]
[1761590011111,1.86099306,115450.0,115440.0,1.0]
[1761590011755,1.98421306,115450.0,115440.0,1.0]
[1761590013849,1.95467806,115450.0,115440.0,1.0]
[1761590014075,1.92887806,115450.0,115440.0,1.0]
[1761590014558,1.92886821,115450.0,115440.0,1.0]
[1761590015677,1.92884959,115450.0,115440.0,1.0]
[1761590015880,1.34914837,115450.0,115440.0,1.0]
[1761590016241,0.75499175,115450.0,115440.0,1.0]
[1761590016464,0.39287093,115450.0,115440.0,1.02778]
[1761590016705,0.54527093,115450.0,115440.0,1.05171]
[1761590017137,0.58045321,115450.0,115440.0,1.02778]
[1761590017350,0.99038983,115450.0,115440.0,1.02778]
[1761590017553,0.97938983,115450.0,115440.0,1.02778]
[1761590018352,0.98238983,115450.0,115440.0,1.02778]
[1761590021111,0.95880983,115450.0,115440.0,1.02778]
[1761590021338,0.95880983,115450.0,115440.0,1.05171]
[1761590021561,0.95880983,115450.0,115440.0,1.02778]
[1761590021759,0.98238983,115450.0,115440.0,1.02778]
[1761590025095,0.98238983,115450.0,115440.0,1.0]
[1761590029066,0.59603321,115450.0,115440.0,1.0]
[1761590029273,0.98238983,115450.0,115440.0,1.0]
[1761590031021,0.92694983,115450.0,115440.0,1.0]
[1761590031957,1.65330645,115450.0,115440.0,1.0]
[1761590032167,3.67190721,115450.0,115440.0,1.0]
[1761590032383,3.09432721,115450.0,115440.0,1.0]
[1761590032594,3.06466121,115450.0,115440.0,1.0]
[1761590032775,3.06789122,115450.0,115440.0,1.0]
[1761590033192,2.83235422,115450.0,115440.0,1.0]
[1761590034043,2.80600922,115450.0,115440.0,1.0]
[1761590035430,1.28555752,115450.0,115440.0,1.0]
[1761590036316,1.34095752,115450.0,115440.0,1.0]
[1761590039849,1.18855752,115450.0,115440.0,1.0]
[1761590040049,0.6146009,115450.0,115440.0,1.0]
[1761590040245,0.98235676,115450.0,115440.0,1.0]
[1761590040492,0.98236176,115450.0,115440.0,1.0]
[1761590040934,0.32844286,115450.0,115440.0,1.05163]
[1761590041137,0.45401286,115450.0,115440.0,1.22488017]
[1761590041311,0.50540514,115450.0,115440.0,1.02812]
[1761590041959,0.50540514,115450.0,115440.0,1.05163]
[1761590043171,0.50540514,115450.0,115440.0,1.02812]
[1761590043588,0.51689514,115450.0,115440.0,1.02812]
[1761590044449,0.49089837,115450.0,115440.0,1.02812]
[1761590047600,0.90023499,115450.0,115440.0,1.02812]
[1761590048644,0.90023499,115450.0,115440.0,1.01622]
[1761590048861,0.90023499,115450.0,115440.0,1.0]
[1761590049275,0.9188527,115450.0,115440.0,1.0]
[1761590050144,0.91885414,115450.0,115440.0,1.0]
[1761590054206,0.90023499,115450.0,115440.0,1.0]
[1761590055493,0.95563499,115450.0,115440.0,1.0]
[1761590055716,0.95563499,115450.0,115440.0,1.05104]
[1761590055717,0.31179837,115450.0,115440.0,1.05104]
[1761590055945,0.46415837,115450.0,115440.0,1.05104]
[1761590056364,0.48028837,115450.0,115440.0,1.05104]
[1761590056775,0.46415837,115450.0,115440.0,1.05104]
[1761590057829,0.48028837,115450.0,115440.0,1.05104]
[1761590058030,0.48028837,115450.0,115440.0,1.02775]
[1761590060111,0.48028837,115450.0,115440.0,1.05104]
[1761590060290,0.46415837,115450.0,115440.0,1.22429017]
[1761590060712,0.25474678,115450.0,115440.0,1.22429017]
[1761590060946,0.24666308,115450.0,115440.0,1.22429017]
[1761590061291,0.00448407,115450.0,115440.0,1.61064679]
[1761590061694,0.00048407,115450.0,115440.0,1.61064679]
[1761590062503,0.00048407,115450.0,115440.0,1.61564679]
[1761590062706,0.00048407,115450.0,115440.0,1.22929017]
[1761590065197,0.17371923,115450.0,115440.0,1.22929017]
[1761590065951,0.17371923,115450.0,115440.0,1.22429017]
[1761590066156,0.18984923,115450.0,115440.0,1.20300017]
[1761590066572,0.18984923,115450.0,115440.0,1.22629017]
[1761590069041,0.22419923,115450.0,115440.0,1.20300017]
[1761590069465,0.93231148,115450.0,115440.0,1.002]
[1761590069671,0.96849376,115450.0,115440.0,1.002]
[1761590070107,0.97657154,115450.0,115440.0,1.002]
[1761590070526,0.89695492,115450.0,115440.0,1.002]
[1761590071161,0.89695492,115450.0,115440.0,1.0]
[1761590071374,0.89695492,115450.0,115440.0,1.0159]
[1761590072827,0.87402492,115450.0,115440.0,1.02757]
[1761590073240,0.89695492,115450.0,115440.0,1.0]
[1761590073443,0.89695492,115450.0,115440.0,1.0159]
[1761590075974,0.89686207,115450.0,115440.0,1.0159]
[1761590077633,0.89686207,115450.0,115440.0,1.0]
[1761590081428,0.98668108,115450.0,115440.0,1.0]
[1761590082707,0.98768108,115450.0,115440.0,1.0]
[1761590083561,0.99068108,115450.0,115440.0,1.0]
[1761590084419,0.90086207,115450.0,115440.0,1.0]
[1761590084631,0.5145983,115450.0,115440.0,1.0]
[1761590084832,0.90086207,115450.0,115440.0,1.0]
[1761590089346,0.87793207,115450.0,115440.0,1.0159]
[1761590089551,0.4916683,115450.0,115440.0,1.05194]
[1761590089754,0.87793207,115450.0,115440.0,1.05194]
[1761590089988,0.87793207,115450.0,115440.0,1.02757]
[1761590090225,0.90086207,115450.0,115440.0,1.02757]
[1761590091382,0.87793207,115450.0,115440.0,1.02757]
[1761590091561,0.87793302,115450.0,115440.0,1.02757]
[1761590091909,0.90086302,115450.0,115440.0,1.02757]
[1761590093163,0.51459925,115450.0,115440.0,1.02757]
[1761590093365,0.90086302,115450.0,115440.0,1.02757]
[1761590098242,0.51459925,115450.0,115440.0,1.02757]
[1761590098461,0.91950104,115450.0,115440.0,1.02757]
[1761590099956,0.89657104,115450.0,115440.0,1.02757]
[1761590100166,0.92142104,115450.0,115440.0,1.01167]
[1761590100430,0.92142104,115450.0,115440.0,1.02829]
[1761590100871,0.92142104,115450.0,115440.0,1.05088]
[1761590100872,0.44657499,115450.0,115440.0,1.05088]
[1761590101084,0.83285432,115450.0,115440.0,1.05088]
[1761590101529,0.84919432,115450.0,115440.0,1.02829]
[1761590103515,0.46293055,115450.0,115440.0,1.02829]
[1761590103722,0.44659055,115450.0,115440.0,1.22413017]
[1761590103963,0.83285432,115450.0,115440.0,1.22413017]
[1761590104630,0.01257836,115450.0,115440.0,1.61039394]
[1761590104857,0.33813352,115450.0,115440.0,1.22413017]
[1761590105065,0.18581352,115450.0,115440.0,1.22413017]
[1761590105499,0.18481352,115450.0,115440.0,1.22413017]
[1761590105927,0.00857836,115450.0,115440.0,1.22413017]
[1761590106266,0.00048407,115450.0,115440.0,1.22613017]
[1761590106986,0.00048407,115450.0,115440.0,1.61239394]
[1761590107793,0.00048407,115450.0,115440.0,1.22613017]
[1761590112562,0.00048407,115450.0,115440.0,1.61239394]
[1761590112801,0.00048407,115450.0,115440.0,1.99865771]
[1761590113006,0.00048407,115450.0,115440.0,1.22613017]
[1761590114260,0.18938923,115450.0,115440.0,1.22613017]
[1761590114482,0.588053,115450.0,115440.0,1.18692017]
[1761590114692,0.588053,115450.0,115440.0,1.002]
[1761590114693,0.79047102,115450.0,115440.0,1.002]
[1761590114873,0.7985576,115450.0,115440.0,1.002]
[1761590115898,0.7985576,115450.0,115440.0,1.0]
[1761590116101,0.7985576,115450.0,115440.0,1.002]
[1761590116467,0.7985576,115450.0,115440.0,1.0]
[1761590116670,0.89313988,115450.0,115440.0,1.0]
[1761590116887,1.27940365,115450.0,115440.0,1.0]
[1761590117095,1.28040365,115450.0,115440.0,1.0]
[1761590117310,0.89413988,115450.0,115440.0,1.0]
[1761590118568,0.80432087,115450.0,115440.0,1.0]
[1761590120475,0.75347087,115450.0,115440.0,1.05065]
[1761590120694,0.75347087,115450.0,115440.0,1.02696]
[1761590120695,0.76914087,115450.0,115440.0,1.02696]
[1761590120908,0.80432087,115450.0,115440.0,1.02696]
[1761590121115,0.4180571,115450.0,115440.0,1.02696]
[1761590121318,0.80432087,115450.0,115440.0,1.02696]
[1761590123690,0.72614087,115450.0,115440.0,1.02696]
[1761590124768,0.69807087,115450.0,115440.0,1.05065]
[1761590124983,0.74892087,115450.0,115440.0,1.0]
[1761590125438,0.79404868,115450.0,115440.0,1.0]
[1761590126568,0.40778491,115450.0,115440.0,1.0]
[1761590126775,0.79404868,115450.0,115440.0,1.0]
[1761590127404,1.18031245,115450.0,115440.0,1.0]
[1761590127608,0.79404868,115450.0,115440.0,1.0]
[1761590127818,0.3626571,115450.0,115440.0,1.0]
[1761590128068,0.74892087,115450.0,115440.0,1.0]
[1761590129382,0.3626571,115450.0,115440.0,1.0]
[1761590129594,0.74892087,115450.0,115440.0,1.0]
[1761590130458,0.77492176,115450.0,115440.0,1.0]
[1761590131100,0.74892087,115450.0,115440.0,1.01631]
[1761590131971,0.83968988,115450.0,115440.0,1.0]
[1761590132814,0.74987087,115450.0,115440.0,1.0]
[1761590133141,0.3398771,115450.0,115440.0,1.02798]
[1761590133344,0.3118071,115450.0,115440.0,1.05284]
[1761590133561,0.69807087,115450.0,115440.0,1.05284]
[1761590134428,0.72556087,115450.0,115440.0,1.02798]
[1761590134884,0.74929087,115450.0,115440.0,1.02798]
[1761590135540,0.74869087,115450.0,115440.0,1.02798]
[1761590135997,0.74869087,115450.0,115440.0,1.01167]
[1761590135998,0.74866653,115450.0,115440.0,1.01167]
[1761590136216,0.74866653,115450.0,115440.0,1.0]
[1761590136845,0.3624271,115450.0,115440.0,1.0]
[1761590137056,0.72493653,115450.0,115440.0,1.01631]
[1761590137829,0.74866653,115450.0,115440.0,1.01631]
[1761590138888,0.3112071,115450.0,115440.0,1.05284]
[1761590139101,0.3273071,115450.0,115440.0,1.02798]
[1761590139310,0.3624271,115450.0,115440.0,1.02798]
[1761590140391,0.3386971,115450.0,115440.0,1.02798]
[1761590140609,0.72493653,115450.0,115440.0,1.02798]
[1761590142435,0.33870004,115450.0,115440.0,1.02798]
[1761590142646,0.33870004,115450.0,115440.0,1.05284]
[1761590144005,0.32260004,115450.0,115440.0,1.22609017]
[1761590144220,0.31121004,115450.0,115440.0,1.22609017]
[1761590145115,0.32731004,115450.0,115440.0,1.05284]
[1761590145867,0.35330883,115450.0,115440.0,1.05284]
[1761590146053,0.35330883,115450.0,115440.0,1.22609017]
[1761590148074,0.33720883,115450.0,115440.0,1.22609017]
[1761590149632,0.48948883,115450.0,115440.0,1.22609017]
[1761590150623,0.54070883,115450.0,115440.0,1.17325017]
[1761590151237,0.48948883,115450.0,115440.0,1.22609017]
[1761590152340,0.52931883,115450.0,115440.0,1.02798]
[1761590152543,0.52931883,115450.0,115440.0,1.20123017]
[1761590152711,0.50558883,115450.0,115440.0,1.20123017]
[1761590154829,0.50558883,115450.0,115440.0,1.22609017]
[1761590155639,0.47959004,115450.0,115440.0,1.22609017]
[1761590156301,0.47959004,115450.0,115440.0,1.05284]
[1761590156654,0.49098004,115450.0,115440.0,1.02798]
[1761590157069,0.4929912,115450.0,115440.0,1.20123017]
[1761590157959,0.87923063,115450.0,115440.0,1.20123017]
[1761590158799,0.87923063,115450.0,115440.0,1.02798]
[1761590159442,0.87923063,115450.0,115440.0,1.01167]
[1761590159443,0.90366063,115450.0,115440.0,1.01167]
[1761590161873,0.90367186,115450.0,115440.0,1.01167]
[1761590162086,0.90367186,115450.0,115440.0,1.02709]
[1761590162244,0.87924186,115450.0,115440.0,1.02709]
[1761590162654,0.90367186,115450.0,115440.0,1.0]
[1761590162858,0.90367186,115450.0,115440.0,1.01542]
[1761590163038,0.87924186,115450.0,115440.0,1.01542]
[1761590163249,0.87924186,115450.0,115440.0,1.02693]
[1761590164904,0.90524063,115450.0,115440.0,1.02693]
[1761590167607,0.92907063,115450.0,115440.0,1.0]
[1761590168662,0.92907063,115450.0,115440.0,1.0153]
[1761590168884,0.5428312,115450.0,115440.0,1.0]
[1761590169090,0.92907063,115450.0,115440.0,1.0]
[1761590170904,0.90524063,115450.0,115440.0,1.0153]
[1761590171105,0.90524063,115450.0,115440.0,1.05067]
[1761590172285,0.90524063,115450.0,115440.0,1.22392017]
[1761590172879,0.90524063,115450.0,115440.0,1.19997017]
[1761590173808,0.5190012,115450.0,115440.0,1.19997017]
[1761590174019,0.5583012,115450.0,115440.0,1.22392017]
[1761590174234,0.96066063,115450.0,115440.0,1.22392017]
[1761590174596,0.5982512,115450.0,115440.0,1.17325017]
[1761590174828,0.5744212,115450.0,115440.0,1.19997017]
[1761590175003,0.5744212,115450.0,115440.0,1.02672]
[1761590175235,0.96066063,115450.0,115440.0,1.02672]
[1761590177092,0.96066063,115450.0,115440.0,1.05067]
[1761590177287,0.96066063,115450.0,115440.0,1.22392017]
[1761590177656,0.96066063,115450.0,115440.0,1.19997017]
[1761590179050,0.96066063,115450.0,115440.0,1.02672]
[1761590179276,0.5744212,115450.0,115440.0,1.19997017]
[1761590179454,0.96066063,115450.0,115440.0,1.19997017]
[1761590180110,0.98449063,115450.0,115440.0,1.0]
[1761590180521,1.00316678,115450.0,115440.0,1.0]
[1761590181147,0.61692735,115450.0,115440.0,1.0]
[1761590181350,1.00316678,115450.0,115440.0,1.0]
[1761590181786,1.00316678,115450.0,115440.0,1.0153]
[1761590181985,1.00316678,115450.0,115440.0,1.0]
[1761590183559,0.98449063,115450.0,115440.0,1.0153]
[1761590183954,0.96066063,115450.0,115440.0,1.02672]
[1761590184484,0.98449063,115450.0,115440.0,1.0]
[1761590185701,0.96066063,115450.0,115440.0,1.0153]
[1761590185911,0.96066063,115450.0,115440.0,1.02672]
[1761590186315,0.97934406,115450.0,115440.0,1.02672]
[1761590187494,0.96066063,115450.0,115440.0,1.02672]
[1761590187896,0.97934381,115450.0,115440.0,1.02672]
[1761590188081,0.98547063,115450.0,115440.0,1.02672]
[1761590188892,0.98547063,115450.0,115440.0,1.0]
[1761590190073,1.00415379,115450.0,115440.0,1.0]
[1761590194119,1.00374989,115450.0,115440.0,1.0]
[1761590196105,0.61751046,115450.0,115440.0,1.0]
[1761590196314,1.00374989,115450.0,115440.0,1.0]
[1761590196643,1.00374989,115450.0,115440.0,1.01597]
[1761590197824,1.00375767,115450.0,115440.0,1.01597]
[1761590198040,1.00375767,115450.0,115440.0,1.0]
[1761590201752,0.96757539,115450.0,115440.0,1.0]
[1761590203714,0.05879384,115450.0,115440.0,1.61166738]
[1761590203937,0.01411191,115450.0,115440.0,1.61166738]
[1761590204345,0.0141205,115450.0,115440.0,1.61166738]
[1761590205903,0.0401167,115450.0,115440.0,1.61166738]
[1761590207212,0.03200736,115450.0,115440.0,1.61166738]
[1761590208252,0.02900736,115450.0,115440.0,1.61166738]
[1761590210450,0.02900736,115450.0,115440.0,1.58724738]
[1761590210655,0.02900736,115450.0,115440.0,1.61166738]
[1761590210864,0.02900736,115450.0,115440.0,1.22542017]
[1761590211069,0.02900736,115450.0,115440.0,1.61166738]
[1761590211634,0.02900736,115450.0,115440.0,1.22542017]
[1761590212040,0.02900736,115450.0,115440.0,1.61166738]
[1761590213833,0.02900736,115450.0,115440.0,1.22542017]
[1761590214237,0.04557736,115450.0,115440.0,1.22542017]
[1761590214469,0.60505973,115450.0,115440.0,1.22542017]
[1761590214662,0.68449933,115450.0,115440.0,1.22542017]
[1761590214861,0.69259722,115450.0,115440.0,1.22542017]
[1761590215270,0.61315762,115450.0,115440.0,1.22542017]
[1761590215724,0.59658762,115450.0,115440.0,1.22542017]
[1761590215929,0.58848973,115450.0,115440.0,1.22542017]
[1761590216056,0.41525457,115450.0,115440.0,1.22542017]
[1761590216266,0.02900736,115450.0,115440.0,1.22542017]
[1761590216711,0.02900736,115450.0,115440.0,1.99791459]
[1761590216929,0.00301116,115450.0,115440.0,1.99791459]
[1761590217702,0.00201116,115450.0,115440.0,1.99791459]
[1761590218277,0.00201116,115450.0,115440.0,2.81798081]
[1761590218481,0.00201116,115450.0,115440.0,2.8279808]
[1761590218903,0.00201116,115450.0,115440.0,2.85397009]
[1761590220649,0.00201116,115450.0,115440.0,2.8439701]
[1761590220878,0.00201116,115450.0,115440.0,2.85397009]
[1761590221096,0.00201116,115450.0,115440.0,2.86397008]
[1761590221953,0.00201116,115450.0,115440.0,2.86497008]
[1761590222390,0.00201116,115450.0,115440.0,2.86097008]
[1761590222597,0.00201116,115450.0,115440.0,2.85997008]
[1761590222817,0.00201116,115450.0,115440.0,2.87197008]
[1761590223029,0.00201116,115450.0,115440.0,1.70322846]
[1761590223240,0.00201116,115450.0,115440.0,2.46572289]
[1761590223459,0.00201116,115450.0,115440.0,2.47572288]
[1761590223893,0.00201116,115450.0,115440.0,2.46472288]
[1761590224316,0.00201116,115450.0,115440.0,2.47272288]
[1761590224529,0.00201116,115450.0,115440.0,2.47172288]
[1761590224739,0.00201116,115450.0,115440.0,2.47272288]
[1761590225810,0.00201116,115450.0,115440.0,2.46272289]
[1761590226029,0.00201116,115450.0,115440.0,2.47272288]
[1761590226578,0.00201116,115450.0,115440.0,2.46272289]
[1761590226805,0.00201116,115450.0,115440.0,2.47272288]
[1761590227222,0.00201116,115450.0,115440.0,2.46272289]
[1761590227433,0.00201116,115450.0,115440.0,2.47272288]
[1761590227969,0.00201116,115450.0,115440.0,2.46272289]
[1761590228591,0.00201116,115450.0,115440.0,2.47272288]
[1761590230289,0.00201116,115450.0,115440.0,2.85897009]
[1761590230508,0.00551185,115450.0,115440.0,2.85897009]
[1761590230644,0.00551185,115450.0,115440.0,2.47272288]
[1761590230853,0.00551185,115450.0,115440.0,2.46272289]
[1761590233635,0.00551185,115450.0,115440.0,1.96066738]
[1761590233848,0.00551185,115450.0,115440.0,2.34691459]
[1761590234062,0.00551185,115450.0,115440.0,2.33791459]
[1761590234285,0.00551185,115450.0,115440.0,2.33891459]
[1761590234498,0.00551185,115450.0,115440.0,2.34191459]
[1761590234927,0.00551185,115450.0,115440.0,1.95566738]
[1761590235765,0.00551185,115450.0,115440.0,2.34191459]
[1761590243068,0.00551185,115450.0,115440.0,1.95566738]
[1761590243274,0.00551185,115450.0,115440.0,1.61566738]
[1761590243643,0.0315053,115450.0,115440.0,1.61566738]
[1761590243850,0.0315053,115450.0,115440.0,1.61466738]
[1761590244715,0.0315053,115450.0,115440.0,1.22542017]
[1761590244919,0.0315053,115450.0,115440.0,1.22642017]
[1761590245128,0.0315053,115450.0,115440.0,1.61266738]
[1761590245291,0.0315053,115450.0,115440.0,1.22642017]
[1761590245531,0.23206046,115450.0,115440.0,1.20200017]
[1761590245882,0.25479046,115450.0,115440.0,1.20200017]
[1761590246416,0.23206046,115450.0,115440.0,1.20100017]
[1761590246551,0.23406046,115450.0,115440.0,1.18980017]
[1761590246784,0.23406046,115450.0,115440.0,1.20158017]
[1761590247039,0.23406046,115450.0,115440.0,1.22657017]
[1761590247530,0.23406046,115450.0,115440.0,1.20158017]
[1761590249150,0.38618046,115450.0,115440.0,1.20158017]
[1761590249375,0.79726767,115450.0,115440.0,1.20158017]
[1761590249596,0.77242767,115450.0,115440.0,1.20158017]
[1761590250037,0.77242767,115450.0,115440.0,1.22421017]
[1761590250233,0.38618046,115450.0,115440.0,1.22421017]
[1761590250984,0.1856253,115450.0,115440.0,1.22421017]
[1761590251194,0.1856253,115450.0,115440.0,1.61045738]
[1761590252756,0.18212461,115450.0,115440.0,1.61045738]
[1761590254778,0.21830689,115450.0,115440.0,1.61045738]
[1761590255002,0.18212461,115450.0,115440.0,1.61045738]
[1761590256109,0.03000461,115450.0,115440.0,1.99670459]
[1761590256322,0.00401116,115450.0,115440.0,1.99670459]
[1761590256768,0.00401116,115450.0,115440.0,2.33670459]
[1761590257590,0.00201116,115450.0,115440.0,2.33670459]
[1761590258477,0.00201116,115450.0,115440.0,2.33770459]
[1761590259871,0.00201116,115450.0,115440.0,1.95123051]
[1761590263008,0.04431116,115450.0,115440.0,1.95123051]
[1761590268635,0.04431116,115450.0,115440.0,1.56521017]
[1761590268838,0.04431116,115450.0,115440.0,1.22521017]
[1761590270228,0.06044116,115450.0,115440.0,1.20258017]
[1761590270392,0.04431116,115450.0,115440.0,1.22521017]
[1761590280531,0.06037116,115450.0,115440.0,1.22521017]
[1761590281174,0.23360632,115450.0,115440.0,1.22521017]
[1761590281380,0.06037116,115450.0,115440.0,1.22421017]
[1761590281588,0.38772632,115450.0,115440.0,1.22421017]
[1761590281795,0.84488894,115450.0,115440.0,1.02833]
[1761590281980,0.93470795,115450.0,115440.0,1.0]
[1761590282687,0.96070616,115450.0,115440.0,1.0]
[1761590283325,0.57468582,115450.0,115440.0,1.17325017]
[1761590283529,0.35043066,115450.0,115440.0,1.22420017]
[1761590283752,0.57906582,115450.0,115440.0,1.22420017]
[1761590284599,0.56912761,115450.0,115440.0,1.02731]
[1761590285257,0.60525761,115450.0,115440.0,1.20056017]
[1761590285465,0.58071761,115450.0,115440.0,1.20056017]
[1761590285877,0.58071761,115450.0,115440.0,1.19993962]
[1761590286672,0.60525761,115450.0,115440.0,1.19993962]
[1761590287520,0.37983245,115450.0,115440.0,1.22486962]
[1761590287736,0.32443245,115450.0,115440.0,1.22486962]
[1761590289937,0.32443245,115450.0,115440.0,1.22486962]
[1761590291312,0.49766761,115450.0,115440.0,1.22486962]
[1761590291490,0.32443245,115450.0,115440.0,1.22486962]
[1761590292319,0.6112219,115450.0,115440.0,1.17262962]
[1761590292952,0.43798674,115450.0,115440.0,1.18779962]
[1761590293157,0.38591674,115450.0,115440.0,1.22440962]
[1761590293380,0.5591519,115450.0,115440.0,1.22440962]
[1761590293512,0.40185674,115450.0,115440.0,1.22440962]
[1761590293723,0.34037245,115450.0,115440.0,1.22440962]
[1761590294135,0.37650245,115450.0,115440.0,1.17262962]
[1761590294389,0.35196245,115450.0,115440.0,1.17262962]
[1761590294555,0.33602245,115450.0,115440.0,1.18779962]
[1761590294721,0.33602245,115450.0,115440.0,1.22440962]
[1761590294930,0.50925761,115450.0,115440.0,1.22440962]
[1761590295135,0.33602245,115450.0,115440.0,1.22440962]
[1761590296158,0.52519761,115450.0,115440.0,1.22440962]
[1761590297754,0.35196245,115450.0,115440.0,1.22440962]
[1761590298343,0.52519761,115450.0,115440.0,1.22440962]
[1761590299736,0.52519761,115450.0,115440.0,1.19947962]
[1761590301055,1.02557696,115450.0,115440.0,0.99937945]
[1761590301208,1.08097696,115450.0,115440.0,1.17262962]
[1761590301481,1.08097696,115450.0,115440.0,0.99937945]
[1761590305342,1.08906594,115450.0,115440.0,0.99937945]
[1761590306898,1.11506489,115450.0,115440.0,0.99937945]
[1761590307177,1.11506489,115450.0,115440.0,1.17262962]
[1761590307657,1.02524588,115450.0,115440.0,0.99937945]
[1761590309242,1.0438947,115450.0,115440.0,0.99937945]
[1761590310300,1.02524588,115450.0,115440.0,0.99937945]
[1761590311530,1.04389093,115450.0,115440.0,0.99937945]
[1761590312493,1.02524588,115450.0,115440.0,0.99937945]
[1761590312674,0.61468554,115450.0,115440.0,1.01072945]
[1761590312883,0.63859554,115450.0,115440.0,0.99937945]
[1761590313455,0.43107554,115450.0,115440.0,0.99937945]
[1761590313771,0.63859554,115450.0,115440.0,0.99937945]
[1761590314906,0.68729634,115450.0,115440.0,0.99937945]
[1761590315316,0.63189634,115450.0,115440.0,0.99937945]
[1761590315522,0.53175554,115450.0,115440.0,1.04944945]
[1761590315725,0.60329554,115450.0,115440.0,1.02599945]
[1761590315902,0.63957554,115450.0,115440.0,0.99937945]
[1761590317970,0.61566554,115450.0,115440.0,1.19924962]
[1761590318183,0.58715554,115450.0,115440.0,1.22269962]
[1761590318386,0.53175554,115450.0,115440.0,1.22269962]
[1761590318550,0.60329554,115450.0,115440.0,1.22269962]
[1761590318774,0.54789554,115450.0,115440.0,1.22269962]
[1761590319018,0.60329554,115450.0,115440.0,1.22269962]
[1761590319225,0.58715554,115450.0,115440.0,1.22269962]
[1761590319350,0.56115659,115450.0,115440.0,1.22269962]
[1761590319860,0.38792143,115450.0,115440.0,1.22269962]
[1761590321898,0.37983245,115450.0,115440.0,1.22269962]
[1761590323305,0.55306761,115450.0,115440.0,1.22269962]
[1761590323654,0.67139662,115450.0,115440.0,1.19924962]
[1761590323860,1.08146259,115450.0,115440.0,1.19924962]
[1761590324057,1.08146259,115450.0,115440.0,0.99937945]
[1761590324255,1.08955239,115450.0,115440.0,0.99937945]
[1761590325141,1.08955239,115450.0,115440.0,1.17262962]
[1761590325341,1.08955239,115450.0,115440.0,0.99937945]
[1761590325845,0.70339642,115450.0,115440.0,0.99937945]
[1761590326068,1.08955239,115450.0,115440.0,1.17262962]
[1761590326419,1.11555019,115450.0,115440.0,1.17262962]
[1761590327037,0.98568118,115450.0,115440.0,1.22269962]
[1761590327238,0.97331118,115450.0,115440.0,1.22269962]
[1761590327647,0.98945118,115450.0,115440.0,1.22269962]
[1761590327906,0.98945118,115450.0,115440.0,1.19924962]
[1761590328128,1.00182118,115450.0,115440.0,1.19924962]
[1761590329146,0.59952521,115450.0,115440.0,1.22269962]
[1761590329372,1.00182118,115450.0,115440.0,1.19924962]
[1761590330251,1.02573118,115450.0,115440.0,1.17262962]
[1761590330482,1.00182118,115450.0,115440.0,1.22269962]
[1761590330689,1.02573118,115450.0,115440.0,1.18397962]
[1761590331093,1.02573118,115450.0,115440.0,1.19924962]
[1761590331703,1.02573235,115450.0,115440.0,1.19924962]
[1761590332343,0.46634122,115450.0,115440.0,1.17262962]
[1761590332561,1.00182235,115450.0,115440.0,1.18789962]
[1761590332770,1.02573235,115450.0,115440.0,1.18789962]
[1761590333414,0.61566638,115450.0,115440.0,1.19924962]
[1761590333625,1.00182235,115450.0,115440.0,1.19924962]
[1761590333833,1.02573235,115450.0,115440.0,1.17262962]
[1761590334047,1.11555136,115450.0,115440.0,1.17262962]
[1761590334500,1.11555136,115450.0,115440.0,0.99937945]
[1761590339838,1.11555136,115450.0,115440.0,1.01580945]
[1761590340052,1.11555136,115450.0,115440.0,0.99937945]
[1761590341905,0.72939539,115450.0,115440.0,1.17262962]
[1761590342130,0.61566638,115450.0,115440.0,1.17262962]
[1761590342335,1.00182235,115450.0,115440.0,1.22487962]
[1761590342545,0.43503638,115450.0,115440.0,1.22487962]
[1761590342752,0.58711638,115450.0,115440.0,1.22487962]
[1761590344263,0.41388122,115450.0,115440.0,1.22487962]
[1761590344477,0.38788342,115450.0,115440.0,1.22487962]
[1761590344702,0.38788342,115450.0,115440.0,1.61103559]
[1761590344903,0.38788342,115450.0,115440.0,1.22487962]
[1761590345398,0.38788342,115450.0,115440.0,1.61103559]
[1761590346058,0.04631116,115450.0,115440.0,1.61103559]
[1761590346285,0.19839116,115450.0,115440.0,1.99719156]
[1761590346735,0.19839116,115450.0,115440.0,1.61103559]
[1761590347198,0.19839116,115450.0,115440.0,1.99719156]
[1761590347422,0.19839116,115450.0,115440.0,1.22487962]
[1761590347649,0.19839116,115450.0,115440.0,2.02318468]
[1761590348974,0.19639116,115450.0,115440.0,2.02318468]
[1761590349403,0.19639116,115450.0,115440.0,2.02418468]
[1761590350351,0.04431116,115450.0,115440.0,2.02418468]
[1761590353619,0.04431116,115450.0,115440.0,1.25187274]
[1761590353824,0.04431116,115450.0,115440.0,2.02418468]
[1761590369248,0.04431116,115450.0,115440.0,1.25187274]
[1761590369460,0.04431116,115450.0,115440.0,1.63802871]
[1761590369675,0.04431116,115450.0,115440.0,1.25187274]
[1761590371528,0.04431116,115450.0,115440.0,1.22587962]
[1761590371706,0.06088116,115450.0,115440.0,1.22587962]
[1761590371907,0.06088116,115450.0,115440.0,1.20164962]
[1761590372553,0.06088116,115450.0,115440.0,1.22447962]
[1761590372775,0.21292116,115450.0,115440.0,1.22447962]
[1761590372979,0.82520565,115450.0,115440.0,1.22447962]
[1761590373187,0.98565694,115450.0,115440.0,1.17262962]
[1761590373403,0.98765694,115450.0,115440.0,1.17262962]
[1761590374490,0.93476358,115450.0,115440.0,1.17262962]
[1761590376972,1.32900184,115450.0,115440.0,0.99937945]
[1761590377385,0.96884577,115450.0,115440.0,0.99937945]
[1761590377789,0.96684577,115450.0,115440.0,0.99937945]
[1761590378157,0.97584577,115450.0,115440.0,0.99937945]
[1761590378930,1.06566478,115450.0,115440.0,0.99937945]
[1761590380726,0.4150498,115450.0,115440.0,1.18822962]
[1761590380932,1.00864577,115450.0,115440.0,1.02636945]
[1761590381133,1.03124577,115450.0,115440.0,0.99937945]
[1761590381735,0.6450898,115450.0,115440.0,0.99937945]
[1761590382147,0.5897298,115450.0,115440.0,0.99937945]
[1761590382345,0.63704751,115450.0,115440.0,0.99937945]
[1761590382614,0.66655816,115450.0,115440.0,0.99937945]
[1761590383474,0.63704751,115450.0,115440.0,1.17262962]
[1761590383684,0.63704751,115450.0,115440.0,1.18822962]
[1761590384074,0.63704751,115450.0,115440.0,1.17262962]
[1761590385432,1.02327164,115450.0,115440.0,0.99937945]
[1761590385731,1.02327164,115450.0,115440.0,1.17262962]
[1761590386034,1.11309065,115450.0,115440.0,1.17262962]
[1761590386400,0.78979174,115450.0,115440.0,1.17262962]
[1761590386600,0.99727174,115450.0,115440.0,1.17262962]
[1761590386972,0.35254761,115450.0,115440.0,1.22344962]
[1761590387192,0.56002761,115450.0,115440.0,1.22344962]